[Event "42nd WALTON Women-ch Bangladesh 2024"]
[Site "Dhaka"]
[Date "2024.05.21"]
[Round "2.1"]
[White "Wadifa, Ahmed"]
[Black "Kazi Zarin, Tasnim"]
[Result "1-0"]
[ECO "C60"]
[WhiteElo "1921"]
[BlackElo "1854"]
[Annotator "COMBH"]
[PlyCount "97"]
[EventDate "2024.05.20"]
[EventType "tourn"]
[EventCountry "BAN"]
[SourceTitle "playchess.com"]
[Source "ChessBase"]
[SourceQuality "1"]
[TimeControl "40/5400+30:1800+30"]

1. e4 {[%emt 0:04:47]} e5 {[%emt 0:00:08]} 2. Nf3 {[%emt 0:00:05]} Nc6 {[%emt 0:00:05]} 3. Bb5 {[%emt 0:00:04]} g6 {[%emt 0:00:05]} 4. d4 {[%emt 0:00:26]} exd4 {[%emt 0:00:46]} 5. Bg5 {[%emt 0:02:08]} Be7 {[%emt 0:01:42]} 6. Bxe7 {[%emt 0:00:26]} Ngxe7 {[%emt 0:01:27]} 7. Nxd4 {[%emt 0:00:49]} O-O {[%emt 0:00:32]} 8. O-O {[%emt 0:02:55]} a6 {[%emt 0:01:45]} 9. Bc4 {[%emt 0:02:58]} d5 {[%emt 0:05:15]} 10. exd5 {[%emt 0:07:24]} Nb4 {[%emt 0:03:25]} 11. Nc3 {[%emt 0:12:23]} Nexd5 {[%emt 0:15:31]} 12. Ne4 {[%emt 0:11:11]} Nf6 {[%emt 0:01:29]} 13. Nxf6+ {[%emt 0:06:11]} Qxf6 {[%emt 0:00:04]} 14. c3 {[%emt 0:00:08]} Nc6 {[%emt 0:03:23]} 15. Nxc6 {[%emt 0:00:33]} Qxc6 {[%emt 0:00:05]} 16. Qb3 {[%emt 0:00:08]} Rb8 {[%emt 0:08:29]} 17. Rfe1 {[%emt 0:11:50]} b5 {[%emt 0:04:01]} 18. Bd5 {[%emt 0:00:17]} Qf6 {[%emt 0:00:45]} 19. Qb4 {[%emt 0:01:07]} Bb7 {[%emt 0:04:59]} 20. Bxb7 {[%emt 0:02:40]} Rxb7 {[%emt 0:00:05]} 21. Rad1 {[%emt 0:01:35]} Rd8 {[%emt 0:03:38]} 22. Qc5 {[%emt 0:02:23]} Kg7 {[%emt 0:06:55]} 23. h3 {[%emt 0:00:46]} Rd6 {[%emt 0:02:12]} 24. a3 {[%emt 0:08:48]} Re6 {[%emt 0:06:35]} 25. Rxe6 {[%emt 0:00:59]} Qxe6 {[%emt 0:00:05]} 26. Rd8 {[%emt 0:00:16]} h5 {[%emt 0:16:49]} 27. Qf8+ {[%emt 0:10:48]} Kf6 {[%emt 0:00:06]} 28. Qh8+ {[%emt 0:00:23]} Kf5 {[%emt 0:09:53]} 29. Re8 {[%emt 0:02:44]} Qd6 {[%emt 0:00:31]} 30. Rd8 {[%emt 0:03:12]} Qe6 {[%emt 0:02:26]} 31. g4+ {[%emt 0:01:54]} hxg4 {[%emt 0:00:21]} 32. hxg4+ {[%emt 0:00:02]} Kg5 {[%emt 0:01:00]} 33. Rd4 {[%emt 0:00:18]} c5 {[%emt 0:01:32]} 34. Qd8+ {[%emt 0:02:47]} Re7 {[%emt 0:00:10]} 35. Rd5+ {[%emt 0:00:39]} Kxg4 {[%emt 0:00:10]} 36. Rxc5 {[%emt 0:01:08]} Rd7 {[%emt 0:01:10]} 37. Qg5+ {[%emt 0:00:06]} Kf3 {[%emt 0:00:24]} 38. Qg3+ {[%emt 0:00:13]} Ke2 {[%emt 0:01:32]} 39. Re5+ {[%emt 0:00:03]} Qxe5 {[%emt 0:00:00]} 40. Qxe5+ {[%emt 0:00:02]} Kd1 {[%emt 0:00:00]} 41. Qf6 {[%emt 0:31:10]} Rd2 {[%emt 0:30:01]} 42. b4 {[%emt 0:01:35]} Kc2 {[%emt 0:01:23]} 43. Qxa6 {[%emt 0:00:19]} Rd1+ {[%emt 0:00:23]} 44. Kg2 {[%emt 0:00:09]} Rd5 {[%emt 0:00:04]} 45. c4 {[%emt 0:00:17]} Rg5+ {[%emt 0:00:12]} 46. Kf1 {[%emt 0:00:07]} bxc4 {[%emt 0:00:27]} 47. Qxc4+ {[%emt 0:00:11]} Kb1 {[%emt 0:00:36]} 48. Qd3+ {[%emt 0:00:12]} Ka1 {[%emt 0:00:13]} 49. Qd1+ {[%emt 0:00:05]} 1-0

[Event "42nd WALTON Women-ch Bangladesh 2024"]
[Site "Dhaka"]
[Date "2024.05.21"]
[Round "2.2"]
[White "Sultana, Sharmin Shirin"]
[Black "Neelava, Choudhury"]
[Result "1-0"]
[ECO "D35"]
[WhiteElo "1927"]
[BlackElo "1778"]
[Annotator "NA RC"]
[PlyCount "95"]
[EventDate "2024.05.20"]
[EventType "tourn"]
[EventCountry "BAN"]
[SourceTitle "playchess.com"]
[Source "ChessBase"]
[SourceQuality "1"]
[TimeControl "40/5400+30:1800+30"]

1. d4 {[%emt 0:00:04]} d5 {[%emt 0:10:51]} 2. Nf3 {[%emt 0:00:59]} Nf6 {[%emt 0:00:13]} 3. c4 {[%emt 0:00:09]} e6 {[%emt 0:00:07]} 4. Nc3 {[%emt 0:01:33]} Be7 {[%emt 0:00:10]} 5. cxd5 {[%emt 0:01:30]} exd5 {[%emt 0:00:07]} 6. Bf4 {[%emt 0:00:11]} O-O {[%emt 0:02:48]} 7. e3 {[%emt 0:01:27]} Bg4 {[%emt 0:01:13]} 8. h3 {[%emt 0:03:58]} Bh5 {[%emt 0:03:33]} 9. Be2 {[%emt 0:03:41]} Re8 {[%emt 0:02:55]} 10. Qb3 {[%emt 0:05:44]} b6 {[%emt 0:13:51]} 11. O-O {[%emt 0:03:45]} c6 {[%emt 0:12:58]} 12. Rfc1 {[%emt 0:21:57]} Nbd7 {[%emt 0:16:09]} 13. Ne5 {[%emt 0:23:57]} Rc8 {[%emt 0:04:17]} 14. Ba6 {[%emt 0:00:45]} Rc7 {[%emt 0:09:26]} 15. a4 {[%emt 0:08:17]} Nb8 {[%emt 0:05:46]} 16. Bf1 {[%emt 0:01:33]} Bd6 {[%emt 0:03:03]} 17. Qc2 {[%emt 0:03:41]} Bg6 {[%emt 0:03:56]} 18. Nxg6 {[%emt 0:00:31]} fxg6 {[%emt 0:00:37]} 19. Bxd6 {[%emt 0:00:08]} Qxd6 {[%emt 0:00:13]} 20. Nb5 {[%emt 0:00:08]} Qd7 {[%emt 0:02:28]} 21. Nxc7 {[%emt 0:00:10]} Qxc7 {[%emt 0:00:09]} 22. a5 {[%emt 0:00:27]} Ne4 {[%emt 0:01:23]} 23. Bd3 {[%emt 0:01:58]} Nd6 {[%emt 0:01:22]} 24. b4 {[%emt 0:01:11]} Rc8 {[%emt 0:00:42]} 25. axb6 {[%emt 0:01:46]} axb6 {[%emt 0:01:02]} 26. Qa2 {[%emt 0:00:10]} b5 {[%emt 0:01:46]} 27. Qa7 {[%emt 0:06:14]} Nd7 {[%emt 0:00:12]} 28. Qxc7 {[%emt 0:01:34]} Rxc7 {[%emt 0:00:02]} 29. Ra6 {[%emt 0:00:14]} Nc4 {[%emt 0:00:20]} 30. Bxc4 {[%emt 0:01:28]} bxc4 {[%emt 0:00:25]} 31. Kf1 {[%emt 0:00:49]} Kf7 {[%emt 0:00:57]} 32. Ke2 {[%emt 0:00:18]} Nb8 {[%emt 0:00:11]} 33. Rb6 {[%emt 0:01:13]} Nd7 {[%emt 0:00:07]} 34. Ra6 {[%emt 0:00:03]} Nb8 {[%emt 0:00:04]} 35. Ra4 {[%emt 0:00:24]} Rb7 {[%emt 0:00:38]} 36. Rca1 {[%emt 0:00:10]} Ke6 {[%emt 0:01:01]} 37. Kd2 {[%emt 0:00:32]} Nd7 {[%emt 0:00:44]} 38. Kc3 {[%emt 0:00:38]} Nf6 {[%emt 0:00:44]} 39. f3 {[%emt 0:00:02]} Nd7 {[%emt 0:01:51]} 40. Ra7 {[%emt 0:01:22]} Rb8 {[%emt 0:00:29]} 41. Rc7 {[%emt 0:32:08]} Kd6 {[%emt 0:31:14]} 42. Raa7 {[%emt 0:01:58]} Rd8 {[%emt 0:00:09]} 43. h4 {[%emt 0:01:31]} h6 {[%emt 0:00:39]} 44. e4 {[%emt 0:00:00]} g5 {[%emt 0:00:00]} 45. hxg5 {[%emt 0:00:00]} hxg5 {[%emt 0:00:00]} 46. e5+ {[%emt 0:00:00]} Ke6 {[%emt 0:00:00]} 47. Rxc6+ {[%emt 0:00:00]} Kf5 {[%emt 0:00:00]} 48. Rd6 {[%emt 0:00:00]} 1-0

[Event "42nd WALTON Women-ch Bangladesh 2024"]
[Site "Dhaka"]
[Date "2024.05.21"]
[Round "2.3"]
[White "Noshin, Anjum"]
[Black "Hamid, Rani"]
[Result "1-0"]
[ECO "B42"]
[WhiteElo "2025"]
[BlackElo "1863"]
[Annotator "RC"]
[PlyCount "95"]
[EventDate "2024.05.20"]
[EventType "tourn"]
[EventCountry "BAN"]
[SourceTitle "playchess.com"]
[Source "ChessBase"]
[SourceQuality "1"]
[TimeControl "40/5400+30:1800+30"]

1. e4 {[%emt 0:00:09]} c5 {[%emt 0:00:15]} 2. Nf3 {[%emt 0:00:16]} e6 {[%emt 0:01:04]} 3. d4 {[%emt 0:00:16]} cxd4 {[%emt 0:00:04]} 4. Nxd4 {[%emt 0:00:07]} a6 {[%emt 0:00:04]} 5. Bd3 {[%emt 0:00:07]} Nf6 {[%emt 0:00:13]} 6. O-O {[%emt 0:00:25]} d6 {[%emt 0:00:09]} 7. f4 {[%emt 0:02:15]} Be7 {[%emt 0:00:19]} 8. Kh1 {[%emt 0:03:28]} O-O {[%emt 0:01:36]} 9. e5 {[%emt 0:09:58]} Ne8 {[%emt 0:02:45]} 10. Nc3 {[%emt 0:08:48]} g6 {[%emt 0:00:51]} 11. Be3 {[%emt 0:01:31]} Nc6 {[%emt 0:03:48]} 12. Ne4 {[%emt 0:16:02]} Nxd4 {[%emt 0:01:00]} 13. Bxd4 {[%emt 0:03:01]} dxe5 {[%emt 0:00:43]} 14. Bxe5 {[%emt 0:00:07]} Bd7 {[%emt 0:03:20]} 15. Qe2 {[%emt 0:00:33]} Bc6 {[%emt 0:01:08]} 16. Rad1 {[%emt 0:02:32]} Qa5 {[%emt 0:00:31]} 17. a3 {[%emt 0:04:10]} b5 {[%emt 0:02:34]} 18. Ng3 {[%emt 0:02:48]} Bf6 {[%emt 0:03:59]} 19. f5 {[%emt 0:13:11]} Bxe5 {[%emt 0:08:11]} 20. Qxe5 {[%emt 0:01:03]} Qc7 {[%emt 0:00:29]} 21. Qxc7 {[%emt 0:06:21]} Nxc7 {[%emt 0:00:01]} 22. fxe6 {[%emt 0:00:10]} fxe6 {[%emt 0:02:33]} 23. Rfe1 {[%emt 0:06:17]} Rad8 {[%emt 0:01:54]} 24. Kg1 {[%emt 0:00:26]} Kg7 {[%emt 0:03:50]} 25. Ne4 {[%emt 0:01:21]} Rd5 {[%emt 0:03:29]} 26. b4 {[%emt 0:00:13]} Re5 {[%emt 0:01:29]} 27. Nc5 {[%emt 0:00:36]} Rg5 {[%emt 0:02:05]} 28. Be4 {[%emt 0:00:12]} Be8 {[%emt 0:08:23]} 29. Rd6 {[%emt 0:01:18]} e5 {[%emt 0:17:08]} 30. Nxa6 {[%emt 0:05:05]} Nxa6 {[%emt 0:01:57]} 31. Rxa6 {[%emt 0:00:07]} Bf7 {[%emt 0:00:19]} 32. Ra7 {[%emt 0:02:37]} Kg8 {[%emt 0:00:56]} 33. Rf1 {[%emt 0:01:28]} Bc4 {[%emt 0:03:28]} 34. Rd1 {[%emt 0:06:08]} Rg4 {[%emt 0:02:08]} 35. Bd5+ {[%emt 0:01:56]} Bxd5 {[%emt 0:00:14]} 36. Rxd5 {[%emt 0:00:06]} Re4 {[%emt 0:00:01]} 37. h3 {[%emt 0:00:16]} Re1+ {[%emt 0:06:28]} 38. Kh2 {[%emt 0:00:04]} Re2 {[%emt 0:00:24]} 39. Rxb5 {[%emt 0:00:20]} Re8 {[%emt 0:01:43]} 40. Rbb7 {[%emt 0:00:28]} e4 {[%emt 0:00:07]} 41. Rg7+ {[%emt 0:30:19]} Kh8 {[%emt 0:30:04]} 42. Rxh7+ {[%emt 0:00:04]} Kg8 {[%emt 0:00:01]} 43. Rhg7+ {[%emt 0:00:31]} Kh8 {[%emt 0:00:03]} 44. Rge7 {[%emt 0:04:25]} Rd8 {[%emt 0:00:40]} 45. b5 {[%emt 0:00:00]} Kg8 {[%emt 0:00:00]} 46. b6 {[%emt 0:00:00]} Kf8 {[%emt 0:00:00]} 47. b7 {[%emt 0:00:00]} e3 {[%emt 0:00:00]} 48. Re4 {[%emt 0:00:00]} 1-0

[Event "42nd WALTON Women-ch Bangladesh 2024"]
[Site "Dhaka"]
[Date "2024.05.21"]
[Round "2.4"]
[White "Ahmed, Walijah"]
[Black "Tabassum Sadia, Shahjahan"]
[Result "1-0"]
[ECO "B12"]
[WhiteElo "1878"]
[BlackElo "1567"]
[Annotator "NA RC"]
[PlyCount "61"]
[EventDate "2024.05.20"]
[EventType "tourn"]
[EventCountry "BAN"]
[SourceTitle "playchess.com"]
[Source "ChessBase"]
[SourceQuality "1"]
[TimeControl "40/5400+30:1800+30"]

1. e4 {[%emt 0:03:15]} c6 {[%emt 0:00:38]} 2. d4 {[%emt 0:00:06]} d5 {[%emt 0:00:17]} 3. e5 {[%emt 0:00:05]} e6 {[%emt 0:00:52]} 4. f4 {[%emt 0:01:30]} Ne7 {[%emt 0:04:20]} 5. Nf3 {[%emt 0:02:31]} c5 {[%emt 0:02:33]} 6. dxc5 {[%emt 0:07:55]} Qa5+ {[%emt 0:01:19]} 7. c3 {[%emt 0:02:53]} Qxc5 {[%emt 0:01:10]} 8. Na3 {[%emt 0:00:40]} Nf5 {[%emt 0:02:35]} 9. Nc2 {[%emt 0:01:27]} Be7 {[%emt 0:05:14]} 10. Bd3 {[%emt 0:03:46]} Nh4 {[%emt 0:06:54]} 11. Nxh4 {[%emt 0:02:51]} Bxh4+ {[%emt 0:00:10]} 12. g3 {[%emt 0:00:05]} Be7 {[%emt 0:01:14]} 13. Be3 {[%emt 0:01:07]} Qc7 {[%emt 0:01:13]} 14. Qe2 {[%emt 0:07:49]} Bd7 {[%emt 0:02:32]} 15. Qf2 {[%emt 0:02:42]} Bc6 {[%emt 0:08:09]} 16. Nd4 {[%emt 0:03:35]} Nd7 {[%emt 0:09:40]} 17. O-O {[%emt 0:11:12]} O-O {[%emt 0:08:02]} 18. Qc2 {[%emt 0:13:47]} g6 {[%emt 0:05:11]} 19. h4 {[%emt 0:00:54]} Rfe8 {[%emt 0:10:02]} 20. h5 {[%emt 0:01:39]} Nf8 {[%emt 0:02:15]} 21. Kf2 {[%emt 0:04:00]} Bc5 {[%emt 0:09:17]} 22. Rh1 {[%emt 0:02:09]} Bxd4 {[%emt 0:00:41]} 23. Bxd4 {[%emt 0:00:13]} Kg7 {[%emt 0:00:44]} 24. Qd2 {[%emt 0:05:22]} Kg8 {[%emt 0:07:55]} 25. Rh4 {[%emt 0:03:09]} Qe7 {[%emt 0:03:38]} 26. Rah1 {[%emt 0:01:57]} Rec8 {[%emt 0:03:41]} 27. g4 {[%emt 0:06:51]} Be8 {[%emt 0:01:50]} 28. f5 {[%emt 0:00:50]} g5 {[%emt 0:00:18]} 29. f6 {[%emt 0:00:10]} Qc7 {[%emt 0:01:48]} 30. Qxg5+ {[%emt 0:00:07]} Ng6 {[%emt 0:00:29]} 31. Qh6 {[%emt 0:00:12]} 1-0

[Event "42nd WALTON Women-ch Bangladesh 2024"]
[Site "Dhaka"]
[Date "2024.05.21"]
[Round "2.5"]
[White "Israt, Jahan Diba"]
[Black "Warsia, Khusbu"]
[Result "0-1"]
[ECO "C44"]
[WhiteElo "1904"]
[BlackElo "1905"]
[Annotator "NA RC"]
[PlyCount "62"]
[EventDate "2024.05.20"]
[EventType "tourn"]
[EventCountry "BAN"]
[SourceTitle "playchess.com"]
[Source "ChessBase"]
[SourceQuality "1"]
[TimeControl "40/5400+30:1800+30"]

1. e4 {[%emt 0:00:11]} e5 {[%emt 0:01:42]} 2. Nf3 {[%emt 0:00:08]} Nf6 {[%emt 0:00:07]} 3. d3 {[%emt 0:00:16]} Nc6 {[%emt 0:00:14]} 4. Be2 {[%emt 0:00:13]} Be7 {[%emt 0:06:38]} 5. Nc3 {[%emt 0:01:03]} O-O {[%emt 0:00:11]} 6. O-O {[%emt 0:00:06]} d5 {[%emt 0:00:46]} 7. exd5 {[%emt 0:11:57]} Nxd5 {[%emt 0:00:11]} 8. d4 {[%emt 0:01:49]} exd4 {[%emt 0:13:23]} 9. Nxd4 {[%emt 0:01:11]} Nxc3 {[%emt 0:00:05]} 10. bxc3 {[%emt 0:00:17]} Nxd4 {[%emt 0:00:59]} 11. cxd4 {[%emt 0:00:18]} Bf6 {[%emt 0:00:06]} 12. c3 {[%emt 0:00:37]} c6 {[%emt 0:05:30]} 13. Qb3 {[%emt 0:03:07]} Qc7 {[%emt 0:01:06]} 14. Rb1 {[%emt 0:06:11]} b6 {[%emt 0:11:42]} 15. Ba3 {[%emt 0:09:54]} Re8 {[%emt 0:00:40]} 16. Rfe1 {[%emt 0:01:15]} Bf5 {[%emt 0:02:41]} 17. Rbd1 {[%emt 0:04:20]} Rad8 {[%emt 0:02:24]} 18. Bf3 {[%emt 0:04:27]} Be6 {[%emt 0:01:00]} 19. Qc2 {[%emt 0:08:55]} g6 {[%emt 0:04:59]} 20. Be4 {[%emt 0:13:53]} c5 {[%emt 0:21:17]} 21. dxc5 {[%emt 0:03:42]} bxc5 {[%emt 0:00:07]} 22. g3 {[%emt 0:03:04]} Qa5 {[%emt 0:03:49]} 23. Bb2 {[%emt 0:06:53]} Rxd1 {[%emt 0:01:22]} 24. Rxd1 {[%emt 0:01:55]} Qxa2 {[%emt 0:00:58]} 25. Ra1 {[%emt 0:01:42]} Qb3 {[%emt 0:00:01]} 26. Rxa7 {[%emt 0:01:09]} Qxc2 {[%emt 0:00:18]} 27. Bxc2 {[%emt 0:00:13]} Bh3 {[%emt 0:00:20]} 28. Ra1 {[%emt 0:01:53]} Re2 {[%emt 0:00:30]} 29. Rc1 {[%emt 0:00:37]} c4 {[%emt 0:05:34]} 30. Ba1 {[%emt 0:01:55]} Bg5 {[%emt 0:00:18]} 31. f4 {[%emt 0:00:19]} Be7 {[%emt 0:00:07]} 0-1

[Event "42nd WALTON Women-ch Bangladesh 2024"]
[Site "Dhaka"]
[Date "2024.05.21"]
[Round "2.6"]
[White "Nusrat Jahan, Alo"]
[Black "Jannatul, Ferdous"]
[Result "1-0"]
[ECO "B19"]
[WhiteElo "1850"]
[BlackElo "1990"]
[Annotator "NA RC"]
[PlyCount "175"]
[EventDate "2024.05.20"]
[EventType "tourn"]
[EventCountry "BAN"]
[SourceTitle "playchess.com"]
[Source "ChessBase"]
[SourceQuality "1"]
[TimeControl "40/5400+30:1800+30"]

1. e4 {[%emt 0:00:20]} c6 {[%emt 0:00:47]} 2. d4 {[%emt 0:00:18]} d5 {[%emt 0:00:04]} 3. Nc3 {[%emt 0:00:05]} dxe4 {[%emt 0:00:05]} 4. Nxe4 {[%emt 0:00:05]} Bf5 {[%emt 0:00:11]} 5. Ng3 {[%emt 0:00:07]} Bg6 {[%emt 0:00:02]} 6. h4 {[%emt 0:00:08]} h6 {[%emt 0:00:02]} 7. Nf3 {[%emt 0:00:06]} Nd7 {[%emt 0:00:02]} 8. h5 {[%emt 0:00:11]} Bh7 {[%emt 0:00:02]} 9. Bd3 {[%emt 0:00:06]} Bxd3 {[%emt 0:00:03]} 10. Qxd3 {[%emt 0:00:07]} e6 {[%emt 0:00:05]} 11. Bd2 {[%emt 0:00:08]} Ngf6 {[%emt 0:00:05]} 12. O-O-O {[%emt 0:00:08]} Qc7 {[%emt 0:00:08]} 13. Ne4 {[%emt 0:00:42]} O-O-O {[%emt 0:01:01]} 14. g3 {[%emt 0:00:58]} Nc5 {[%emt 0:02:03]} 15. Nxc5 {[%emt 0:02:12]} Bxc5 {[%emt 0:00:13]} 16. Bf4 {[%emt 0:02:03]} Bd6 {[%emt 0:00:09]} 17. Bxd6 {[%emt 0:07:02]} Rxd6 {[%emt 0:01:22]} 18. Qe2 {[%emt 0:00:31]} Rhd8 {[%emt 0:00:31]} 19. Kb1 {[%emt 0:01:35]} Ng4 {[%emt 0:08:42]} 20. c3 {[%emt 0:10:26]} f5 {[%emt 0:17:11]} 21. Nd2 {[%emt 0:10:49]} Qf7 {[%emt 0:06:30]} 22. f3 {[%emt 0:07:17]} Nf6 {[%emt 0:03:05]} 23. Nc4 {[%emt 0:00:25]} Rd5 {[%emt 0:00:10]} 24. Ne5 {[%emt 0:04:33]} Qe8 {[%emt 0:31:04]} 25. g4 {[%emt 0:04:19]} fxg4 {[%emt 0:12:32]} 26. fxg4 {[%emt 0:01:12]} Nh7 {[%emt 0:00:18]} 27. Rhf1 {[%emt 0:04:34]} Ng5 {[%emt 0:00:49]} 28. Rde1 {[%emt 0:01:04]} c5 {[%emt 0:04:08]} 29. Ng6 {[%emt 0:02:32]} cxd4 {[%emt 0:02:24]} 30. cxd4 {[%emt 0:01:02]} Qd7 {[%emt 0:10:46]} 31. Ne5 {[%emt 0:13:56]} Qe7 {[%emt 0:00:10]} 32. Qh2 {[%emt 0:00:50]} Qd6 {[%emt 0:01:15]} 33. Rc1+ {[%emt 0:07:41]} Kb8 {[%emt 0:00:01]} 34. Rc4 {[%emt 0:00:11]} Ka8 {[%emt 0:00:50]} 35. Rfc1 {[%emt 0:00:08]} Rb8 {[%emt 0:00:32]} 36. Qf2 {[%emt 0:01:20]} Ne4 {[%emt 0:00:24]} 37. Qe3 {[%emt 0:00:01]} Nf6 {[%emt 0:00:31]} 38. Qf4 {[%emt 0:08:52]} a6 {[%emt 0:00:31]} 39. Nd3 {[%emt 0:02:47]} Qxf4 {[%emt 0:00:26]} 40. Nxf4 {[%emt 0:00:01]} Rd6 {[%emt 0:00:29]} 41. Re1 {[%emt 0:35:13]} Re8 {[%emt 0:12:23]} 42. Rg1 {[%emt 0:00:00]} Red8 {[%emt 0:02:38]} 43. Rc7 {[%emt 0:00:00]} Rxd4 {[%emt 0:07:17]} 44. Nxe6 {[%emt 0:00:00]} Rd1+ {[%emt 0:00:01]} 45. Rc1 {[%emt 0:00:00]} Rxc1+ {[%emt 0:00:40]} 46. Kxc1 {[%emt 0:00:00]} Rd7 {[%emt 0:00:33]} 47. Kc2 {[%emt 0:00:00]} Kb8 {[%emt 0:06:49]} 48. a3 {[%emt 0:00:00]} b6 {[%emt 0:00:22]} 49. Rg3 {[%emt 0:00:00]} Re7 {[%emt 0:01:26]} 50. Nd4 {[%emt 0:00:00]} Re4 {[%emt 0:00:39]} 51. Kd3 {[%emt 0:00:00]} Rf4 {[%emt 0:02:07]} 52. Ne6 {[%emt 0:00:00]} Rf2 {[%emt 0:01:15]} 53. b3 {[%emt 0:00:00]} Ra2 {[%emt 0:00:24]} 54. a4 {[%emt 0:00:00]} Rb2 {[%emt 0:00:42]} 55. Kd4 {[%emt 0:00:00]} Rd2+ {[%emt 0:00:20]} 56. Ke5 {[%emt 0:00:00]} Rd5+ {[%emt 0:00:31]} 57. Kf4 {[%emt 0:00:00]} Rd7 {[%emt 0:00:30]} 58. Kf5 {[%emt 0:00:00]} Nd5 {[%emt 0:00:36]} 59. g5 {[%emt 0:00:00]} Rf7+ {[%emt 0:00:31]} 60. Ke5 {[%emt 0:00:00]} Ne7 {[%emt 0:00:30]} 61. gxh6 {[%emt 0:01:34]} gxh6 {[%emt 0:00:07]} 62. Rg7 {[%emt 0:00:40]} Rf5+ {[%emt 0:00:24]} 63. Ke4 {[%emt 0:00:28]} Rxh5 {[%emt 0:00:56]} 64. Rxe7 {[%emt 0:00:12]} Rh3 {[%emt 0:00:17]} 65. Nd4 {[%emt 0:00:26]} h5 {[%emt 0:00:20]} 66. Kd5 {[%emt 0:01:18]} Rc3 {[%emt 0:00:45]} 67. b4 {[%emt 0:02:25]} h4 {[%emt 0:00:12]} 68. a5 {[%emt 0:02:45]} bxa5 {[%emt 0:00:49]} 69. Nc6+ {[%emt 0:00:46]} Kc8 {[%emt 0:00:28]} 70. Nxa5 {[%emt 0:00:20]} h3 {[%emt 0:00:38]} 71. Rh7 {[%emt 0:00:13]} Kb8 {[%emt 0:00:32]} 72. Kd4 {[%emt 0:01:20]} Rc1 {[%emt 0:00:33]} 73. Rxh3 {[%emt 0:00:34]} Kc7 {[%emt 0:00:29]} 74. Rc3+ {[%emt 0:00:06]} Rxc3 {[%emt 0:00:30]} 75. Kxc3 {[%emt 0:00:01]} Kb6 {[%emt 0:00:00]} 76. Kc4 {[%emt 0:00:01]} Kc7 {[%emt 0:00:31]} 77. Kc5 {[%emt 0:00:06]} Kc8 {[%emt 0:00:27]} 78. Kb6 {[%emt 0:00:13]} Kb8 {[%emt 0:00:03]} 79. Kxa6 {[%emt 0:00:20]} Ka8 {[%emt 0:00:02]} 80. Nc4 {[%emt 0:00:15]} Kb8 {[%emt 0:00:03]} 81. Nb6 {[%emt 0:00:08]} Kc7 {[%emt 0:00:28]} 82. Ka7 {[%emt 0:00:07]} Kc6 {[%emt 0:00:22]} 83. Ka6 {[%emt 0:00:51]} Kc7 {[%emt 0:00:03]} 84. Nd5+ {[%emt 0:00:23]} Kb8 {[%emt 0:00:04]} 85. b5 {[%emt 0:00:20]} Ka8 {[%emt 0:00:02]} 86. b6 {[%emt 0:00:44]} Kb8 {[%emt 0:00:05]} 87. Nc7 {[%emt 0:00:24]} Kc8 {[%emt 0:00:08]} 88. Ka7 {[%emt 0:00:19]} 1-0

[Event "42nd WALTON Women-ch Bangladesh 2024"]
[Site "Dhaka"]
[Date "2024.05.22"]
[Round "3.1"]
[White "Jannatul, Ferdous"]
[Black "Wadifa, Ahmed"]
[Result "1/2-1/2"]
[ECO "B44"]
[WhiteElo "1990"]
[BlackElo "1921"]
[Annotator "NA RC"]
[PlyCount "101"]
[EventDate "2024.05.20"]
[EventType "tourn"]
[EventCountry "BAN"]
[SourceTitle "playchess.com"]
[Source "ChessBase"]
[SourceQuality "1"]
[TimeControl "40/5400+30:1800+30"]

1. e4 {[%emt 1:31:00]} c5 {[%emt 1:31:00]} 2. Nf3 {[%emt 0:00:30]} e6 {[%emt 0:00:30]} 3. c4 {[%emt 0:00:30]} Nc6 {[%emt 0:00:30]} 4. d4 {[%emt 0:00:30]} cxd4 {[%emt 0:00:30]} 5. Nxd4 {[%emt 0:00:30]} Nf6 {[%emt 0:00:30]} 6. Nc3 {[%emt 0:00:30]} Bb4 {[%emt 0:00:30]} 7. Nxc6 {[%emt 0:00:30]} bxc6 {[%emt 0:00:30]} 8. Bd3 {[%emt 0:00:30]} e5 {[%emt 0:00:30]} 9. O-O {[%emt 0:00:30]} O-O {[%emt 0:00:30]} 10. Be3 {[%emt 0:00:30] 10.h3 gains popularity.} d6 {[%emt 0:00:30] B44: Sicilian: Taimanov: 5 Nb5.} 11. f3 {[%emt 0:00:30]} Be6 {[%emt 0:00:30]} 12. Qe2 $146 {[%emt 0:00:30]} ({Predecessor:} 12. Na4 Nd7 13. a3 Ba5 14. b4 Bb6 15. Nxb6 axb6 16. Qc2 Qe7 17. Rfd1 Rfd8 18. Qf2 {0-1 Zhurbinsky,D (1996)-Shlyakhtenko,R (2422) Titled Tuesday intern op 19th Jul Late blitz 2022 (4)}) 12... Qe7 {[%emt 0:00:30]} 13. a3 {[%emt 0:00:30]} Bc5 {[%emt 0:00:30]} 14. b4 {[%emt 0:00:30]} Bxe3+ {[%emt 0:00:30]} 15. Qxe3 {[%emt 0:00:30]} Nh5 {[%emt 0:00:30]} 16. g3 {[%emt 0:00:30]} f5 {[%emt 0:00:30]} 17. exf5 {[%emt 0:00:30]} Bxf5 {[%emt 0:00:30]} 18. Ne4 {[%emt 0:00:30]} ({Better is} 18. Bxf5 $16 Rxf5 19. Rad1) 18... d5 {[%emt 0:00:30]} 19. cxd5 {[%emt 0:00:30]} cxd5 {[%emt 0:00:30]} 20. Nc5 {[%emt 0:00:30]} Bxd3 $11 {[%emt 0:00:30]} 21. Nxd3 {[%emt 0:00:30]} Rae8 {[%emt 0:00:30]} 22. Rae1 {[%emt 0:00:30]} e4 {[%emt 0:00:30]} 23. Nc5 {[%emt 0:00:30]} Nf6 {[%emt 0:00:30]} 24. fxe4 {[%emt 0:00:30]} dxe4 {[%emt 0:00:30]} 25. Rf4 {[%emt 0:00:30]} Nd5 {[%emt 0:00:30]} 26. Qxe4 {[%emt 0:00:30]} Qxe4 {[%emt 0:00:30]} 27. Rxf8+ {[%emt 0:00:30]} Rxf8 {[%emt 0:00:30]} 28. Rxe4 {[%emt 0:00:30]} Rf3 {[%emt 0:00:30]} 29. a4 {[%emt 0:00:30]} Rc3 {[%emt 0:00:30]} 30. Ne6 {[%emt 0:00:30]} h6 {[%emt 0:00:30]} 31. Nf4 {[%emt 0:00:30]} Rc1+ {[%emt 0:00:30]} 32. Kg2 {[%emt 0:00:30]} Nf6 {[%emt 0:00:30]} 33. Rd4 {[%emt 0:00:30]} Ra1 {[%emt 0:00:30]} 34. a5 {[%emt 0:00:30]} Ra2+ {[%emt 0:00:30]} 35. Kf3 {[%emt 0:00:30]} Rxh2 {[%emt 0:00:30]} 36. b5 {[%emt 0:00:30]} Rb2 {[%emt 0:00:30]} 37. Rd8+ {[%emt 0:00:30]} Kh7 {[%emt 0:00:30]} 38. Ra8 {[%emt 0:00:30]} Rxb5 {[%emt 0:00:30]} 39. Rxa7 {[%emt 0:00:30]} Rb3+ {[%emt 0:00:30]} 40. Kg2 {[%emt 0:00:30]} Ne4 {[%emt 0:00:30]} 41. Nh5 {[%emt 0:30:30]} Kg6 {[%emt 0:30:30]} 42. g4 {[%emt 0:00:30]} Kg5 {[%emt 0:00:30]} 43. Rxg7+ {[%emt 0:00:30]} Kh4 {[%emt 0:00:30]} 44. a6 {[%emt 0:00:30]} Ra3 {[%emt 0:00:30]} 45. a7 {[%emt 0:00:30]} Nd6 {[%emt 0:00:30]} 46. Nf6 {[%emt 0:00:30]} Nc8 {[%emt 0:00:30]} 47. Ne4 {[%emt 0:00:30]} Rxa7 {[%emt 0:00:30]} 48. Rg6 {[%emt 0:00:30]} Ne7 {[%emt 0:00:30]} 49. Rg7 {[%emt 0:00:30]} Nc6 {[%emt 0:00:30]} 50. Rg6 {[%emt 0:00:30]} Ne5 {[%emt 0:00:30]} 51. Rxh6+ {[%emt 0:00:30]} 1/2-1/2